{"text_format":"1","workbook":"xlsx","n_sheets":1,"sheets":["Sheet1"],"not_rendered":{"charts":0,"images":0,"macros":1,"external_links":0,"defined_names":0,"comments":0,"pivot_tables":0},"unopened":[],"bounds":{"document_bytes":16777216,"sheet_cells":100000,"rows_first":2000,"rows_last":500,"rows_between":2000,"halvings":0,"cell_chars":16384,"cell_head_chars":4096},"cells_cut":0,"cells_raw":0,"read":"whole","date_system":"1900"}

{"sheet":"Sheet1","index":0,"n_rows":8,"n_cols":31,"rows_kept":8,"cut":false,"hidden":false,"merged":[]}
[1,{"$f":"A1+1","v":2},{"$f":"B1+1","v":3},4,5,6,7,8,9,10,11,12,13,14,15,16,17,18,19,20,21,22,23,24,25,26,27,28,{"$f":"AB1+1","v":29},{"$f":"AC1+1","v":30},{"$f":"AD1+1","v":31}]
["الاسم"]
["موظف 1","غياب","غياب","غياب","غياب","غياب","غياب","غياب",null,null,null,{"$f":"COUNTIF(B3:H3,\"غياب\")","v":7}]
["موظف 2"]
["موظف 2",null,null,"غياب","غياب","غياب","غياب","غياب","غياب","غياب"]
[]
[]
[null,"اريد تعديل الكود حتى يمكننى اظهار رسالة تنبيه في بداية فتح الشيت في حالة تجاوز أي موظف من اصل 800 موظف لعدد (7) متواصلة أو (15) يوم متفرقة حتى يتم ارسال انذار فصل له"]